[Event "BLR-ch Youth U20 2019"]
[Site "Kobryn"]
[Date "2019.05.18"]
[Round "8.2"]
[White "Papunidi, Matvey"]
[Black "Strybuk, Artsiom I"]
[Result "0-1"]
[ECO "A03"]
[WhiteElo "2148"]
[BlackElo "2294"]
[Annotator "NA"]
[PlyCount "73"]
[EventDate "2019.05.11"]
[EventType "tourn"]
[EventCountry "BLR"]
[SourceTitle "playchess.com"]
[Source "ChessBase"]
[SourceQuality "1"]
[TimeControl "40/5400+30:1800+30"]

1. f4 {[%emt 0:00:00]} d5 {[%emt 0:00:20]} 2. Nf3 {[%emt 0:01:09]} Bg4 {[%emt 0:00:34]} 3. e3 {[%emt 0:09:38]} Nc6 {[%emt 0:01:48]} 4. Be2 {[%emt 0:02:17]} e6 {[%emt 0:01:23]} 5. O-O {[%emt 0:02:16]} Bd6 {[%emt 0:02:45]} 6. b3 {[%emt 0:02:46]} Nge7 {[%emt 0:04:43]} 7. Bb2 {[%emt 0:00:13]} f6 {[%emt 0:02:34]} 8. Nc3 $11 {[%emt 0:19:01]} Qd7 {[%emt 0:10:26]} 9. Nb5 {[%emt 0:02:37]} O-O-O {[%emt 0:09:51]} 10. a4 {[%emt 0:18:29]} Kb8 {[%emt 0:04:07]} 11. Nfd4 {[%emt 0:09:35]} Bxe2 {[%emt 0:03:53]} 12. Qxe2 {[%emt 0:00:20]} Bc5 {[%emt 0:08:16]} 13. Qg4 {[%emt 0:05:05]} Bxd4 {[%emt 0:01:06]} 14. Nxd4 {[%emt 0:01:12]} Nf5 {[%emt 0:06:19]} 15. Nxf5 {[%emt 0:06:07]} exf5 {[%emt 0:00:04]} 16. Qf3 {[%emt 0:04:17]} d4 {[%emt 0:05:27]} 17. d3 {[%emt 0:01:20]} Rhe8 {[%emt 0:05:48]} 18. exd4 {[%emt 0:02:06]} Nxd4 {[%emt 0:01:16]} 19. Bxd4 {[%emt 0:00:08]} Qxd4+ {[%emt 0:00:27]} 20. Qf2 {[%emt 0:00:13]} Qc3 {[%emt 0:02:46]} 21. Rae1 {[%emt 0:02:20]} a5 {[%emt 0:00:29]} 22. Re2 {[%emt 0:01:17]} Rxe2 {[%emt 0:17:16]} 23. Qxe2 {[%emt 0:00:07]} b6 {[%emt 0:00:07]} 24. Re1 {[%emt 0:03:42]} Rd6 {[%emt 0:00:22]} 25. Qf2 {[%emt 0:02:25]} Rc6 {[%emt 0:02:41]} 26. g3 {[%emt 0:02:31]} Qxc2 {[%emt 0:03:17]} 27. Qxc2 {[%emt 0:00:03]} Rxc2 {[%emt 0:00:03]} 28. Re7 {[%emt 0:00:05]} g5 {[%emt 0:00:13]} 29. fxg5 {[%emt 0:01:58]} fxg5 {[%emt 0:00:05]} 30. Rxh7 {[%emt 0:00:02]} Rc3 {[%emt 0:02:41]} 31. Rh5 {[%emt 0:00:24]} g4 {[%emt 0:01:38]} 32. Rxf5 {[%emt 0:00:31]} Rxb3 {[%emt 0:03:15]} 33. Rf4 {[%emt 0:01:20]} Rb4 {[%emt 0:00:00]} 34. Kf2 {[%emt 0:00:49]} Kb7 {[%emt 0:00:00]} 35. Ke3 {[%emt 0:00:30]} c5 {[%emt 0:00:00]} 36. Rc4 {[%emt 0:00:32]} Kc6 {[%emt 0:00:50]} 37. Rf4 {[%emt 0:01:05]} 0-1

[Event "BLR-ch Youth U20 2019"]
[Site "Kobryn"]
[Date "2019.05.18"]
[Round "8.3"]
[White "Nikitenko, Mihail"]
[Black "Siniauski, Artsiom"]
[Result "1-0"]
[ECO "C07"]
[WhiteElo "2417"]
[BlackElo "2219"]
[Annotator "NA"]
[PlyCount "65"]
[EventDate "2019.05.11"]
[EventType "tourn"]
[EventCountry "BLR"]
[SourceTitle "playchess.com"]
[Source "ChessBase"]
[SourceQuality "1"]
[TimeControl "40/5400+30:1800+30"]

{[%evp 8,42,16,21,22,16,14,21,29,18,25,17,26,0,45,32,46,16,0,0,10,11,8,7,14,0,1,-7,10,3,0,0,20,11,15,19,22]} 1. e4 {[%emt 0:00:00]} e6 {[%emt 0:00:00]} 2. d4 {[%emt 0:00:00]} d5 {[%emt 0:00:00]} 3. Nd2 {[%emt 0:00:00]} c5 {[%emt 0:00:07]} 4. exd5 {[%emt 0:00:00]} Qxd5 {[%emt 0:00:08]} 5. Ngf3 {[%emt 0:00:00]} cxd4 {[%emt 0:00:08]} 6. Bc4 {[%emt 0:00:00]} Qd6 {[%emt 0:00:07]} 7. O-O {[%emt 0:00:07]} Nf6 {[%emt 0:00:07]} 8. Nb3 {[%emt 0:00:12]} Nc6 {[%emt 0:00:15]} 9. Nbxd4 {[%emt 0:00:05]} Nxd4 {[%emt 0:00:07]} 10. Nxd4 {[%emt 0:00:04]} a6 {[%emt 0:00:21]} 11. Bb3 {[%emt 0:00:06]} Qc7 {[%emt 0:01:29]} 12. Qf3 {[%emt 0:00:05]} Bd6 {[%emt 0:03:20]} 13. h3 {[%emt 0:00:06]} O-O {[%emt 0:00:27]} 14. Bg5 {[%emt 0:00:06]} Nd7 {[%emt 0:02:40]} 15. c3 {[%emt 0:00:05]} Ne5 {[%emt 0:06:06]} 16. Qh5 {[%emt 0:04:59]} Ng6 {[%emt 0:01:01]} 17. Bc2 {[%emt 0:01:43]} b6 {[%emt 0:02:31]} 18. Rad1 {[%emt 0:00:35]} Bb7 {[%emt 0:02:34]} 19. Rfe1 {[%emt 0:02:23]} Qc5 {[%emt 0:04:42]} 20. Qg4 {[%emt 0:01:29]} Ne5 {[%emt 0:04:23]} 21. Qe2 {[%emt 0:00:57]} Ng6 $11 {[%emt 0:05:13]} 22. Qg4 {[%emt 0:12:47]} Ne5 {[%emt 0:00:56]} 23. Qh5 {[%emt 0:00:05]} Ng6 {[%emt 0:04:55]} 24. Nb3 {[%emt 0:00:20]} Qc7 {[%emt 0:03:30]} 25. Rd4 {[%emt 0:00:06]} h6 {[%emt 0:08:47]} 26. Bxh6 {[%emt 0:01:56]} gxh6 {[%emt 0:01:56]} 27. Bxg6 {[%emt 0:00:15]} Bh2+ {[%emt 0:07:44]} 28. Kh1 {[%emt 0:00:05]} Bf4 {[%emt 0:00:15]} 29. Be4 {[%emt 0:00:46]} e5 {[%emt 0:02:03]} 30. Qg4+ {[%emt 0:00:25]} Kh8 {[%emt 0:03:27]} 31. Rd7 {[%emt 0:06:20]} Bxe4 {[%emt 0:05:38]} 32. Rxc7 {[%emt 0:00:22]} Rg8 {[%emt 0:00:04]} 33. Rxe4 {[%emt 0:00:14]} 1-0

[Event "BLR-ch Youth U20 2019"]
[Site "Kobryn"]
[Date "2019.05.18"]
[Round "8.4"]
[White "Navumenka, Mikhei"]
[Black "Runets, Ivan"]
[Result "0-1"]
[ECO "A14"]
[WhiteElo "2147"]
[BlackElo "2123"]
[Annotator "NA"]
[PlyCount "120"]
[EventDate "2019.05.11"]
[EventType "tourn"]
[EventCountry "BLR"]
[SourceTitle "playchess.com"]
[Source "ChessBase"]
[SourceQuality "1"]
[TimeControl "40/5400+30:1800+30"]

1. c4 {[%emt 0:00:00]} Nf6 {[%emt 0:01:35]} 2. g3 {[%emt 0:00:19]} e6 {[%emt 0:00:07]} 3. Bg2 {[%emt 0:00:27]} d5 {[%emt 0:00:16]} 4. Nf3 {[%emt 0:00:14]} Be7 {[%emt 0:00:05]} 5. b3 {[%emt 0:00:06]} O-O {[%emt 0:00:20]} 6. Bb2 {[%emt 0:00:39]} Nbd7 {[%emt 0:05:28]} 7. O-O {[%emt 0:00:09]} b6 {[%emt 0:01:02]} 8. cxd5 {[%emt 0:01:47]} exd5 {[%emt 0:02:49]} 9. Nd4 {[%emt 0:01:01]} Bb7 {[%emt 0:00:34]} 10. Nf5 {[%emt 0:00:02]} Re8 {[%emt 0:00:28]} 11. Nxe7+ {[%emt 0:00:04]} Qxe7 {[%emt 0:00:05]} 12. Re1 {[%emt 0:02:55]} Rab8 {[%emt 0:06:37]} 13. e3 {[%emt 0:10:08]} Ne5 {[%emt 0:08:28]} 14. Qe2 {[%emt 0:02:27]} c5 {[%emt 0:01:38]} 15. d4 {[%emt 0:02:25]} Ned7 $14 {[%emt 0:05:29]} 16. Nd2 {[%emt 0:01:50]} Qe6 {[%emt 0:00:24]} 17. Rac1 {[%emt 0:02:17]} Ne4 {[%emt 0:05:04]} 18. Red1 {[%emt 0:10:51]} h6 {[%emt 0:11:32]} 19. Nxe4 {[%emt 0:10:55]} dxe4 {[%emt 0:00:14]} 20. Qc4 {[%emt 0:05:36]} Qxc4 {[%emt 0:07:55]} 21. Rxc4 {[%emt 0:00:11]} Rbd8 {[%emt 0:05:00]} 22. Rdc1 {[%emt 0:09:55]} a5 {[%emt 0:03:35]} 23. Bh3 {[%emt 0:00:51]} Ba6 {[%emt 0:00:30]} 24. R4c2 {[%emt 0:02:06]} Bd3 {[%emt 0:03:49]} 25. Rd2 {[%emt 0:01:01]} cxd4 {[%emt 0:00:43]} 26. Bxd4 {[%emt 0:00:01]} b5 {[%emt 0:06:42]} 27. f4 {[%emt 0:01:48]} Nf8 {[%emt 0:01:08]} 28. Bb6 {[%emt 0:07:06]} Ra8 {[%emt 0:01:35]} 29. Bf1 {[%emt 0:00:45]} Bxf1 {[%emt 0:00:14]} 30. Kxf1 {[%emt 0:00:02]} Reb8 {[%emt 0:00:17]} 31. Bd4 {[%emt 0:00:49]} a4 {[%emt 0:06:43]} 32. Be5 {[%emt 0:02:15]} Rb7 {[%emt 0:04:36]} 33. b4 {[%emt 0:02:57]} a3 {[%emt 0:02:07]} 34. Rcd1 {[%emt 0:04:28]} f6 {[%emt 0:00:43]} 35. Ba1 {[%emt 0:01:01]} Rc7 {[%emt 0:00:54]} 36. Bd4 {[%emt 0:01:42]} Rc4 {[%emt 0:05:58]} 37. Rb1 {[%emt 0:00:29]} Ne6 {[%emt 0:02:39]} 38. Bb6 {[%emt 0:06:42]} Rac8 {[%emt 0:00:17]} 39. Rb3 {[%emt 0:00:26]} R8c6 {[%emt 0:00:32]} 40. Bd4 {[%emt 0:00:00]} Rc1+ {[%emt 0:00:00]} 41. Kf2 {[%emt 0:06:18]} Nxd4 {[%emt 0:08:37]} 42. exd4 {[%emt 0:00:16]} R6c3 {[%emt 0:00:34]} 43. Rxc3 {[%emt 0:00:39]} Rxc3 {[%emt 0:00:05]} 44. Ke2 {[%emt 0:01:47]} Kf7 {[%emt 0:00:42]} 45. d5 {[%emt 0:03:52]} Ke7 {[%emt 0:00:45]} 46. d6+ {[%emt 0:00:02]} Kd7 {[%emt 0:00:05]} 47. Rd5 {[%emt 0:00:26]} Rc2+ {[%emt 0:00:24]} 48. Ke3 {[%emt 0:00:02]} Rxa2 {[%emt 0:00:29]} 49. Rxb5 {[%emt 0:00:07]} Ra1 {[%emt 0:01:55]} 50. Kxe4 {[%emt 0:02:45]} a2 {[%emt 0:00:17]} 51. Ra5 {[%emt 0:00:15]} Re1+ {[%emt 0:00:09]} 52. Kf5 {[%emt 0:00:05]} a1=Q {[%emt 0:00:07]} 53. Rxa1 {[%emt 0:00:04]} Rxa1 {[%emt 0:00:05]} 54. Kg6 {[%emt 0:00:04]} Rh1 {[%emt 0:01:56]} 55. Kxg7 {[%emt 0:01:40]} Rxh2 {[%emt 0:00:10]} 56. Kxf6 {[%emt 0:00:05]} Rg2 {[%emt 0:00:15]} 57. f5 {[%emt 0:00:03]} Rxg3 {[%emt 0:00:11]} 58. Kf7 {[%emt 0:00:04]} h5 {[%emt 0:00:19]} 59. b5 {[%emt 0:00:19]} Kxd6 {[%emt 0:00:09]} 60. f6 {[%emt 0:00:18]} Ke5 {[%emt 0:24:34]} 0-1

[Event "BLR-ch Youth U20 2019"]
[Site "Kobryn"]
[Date "2019.05.18"]
[Round "8.5"]
[White "Zarubitski, Viachaslau"]
[Black "Silich, Yahor"]
[Result "1-0"]
[ECO "A02"]
[WhiteElo "2416"]
[BlackElo "2170"]
[Annotator "RC"]
[PlyCount "81"]
[EventDate "2019.05.11"]
[EventType "tourn"]
[EventCountry "BLR"]
[SourceTitle "playchess.com"]
[Source "ChessBase"]
[SourceQuality "1"]
[TimeControl "40/5400+30:1800+30"]

1. f4 {[%emt 0:00:00]} g6 {[%emt 0:02:13]} 2. Nf3 {[%emt 0:00:09]} Bg7 {[%emt 0:00:34]} 3. g3 {[%emt 0:00:20]} d6 {[%emt 0:00:39]} 4. Bg2 {[%emt 0:00:13]} e5 {[%emt 0:00:38]} 5. Nc3 {[%emt 0:00:52]} Ne7 {[%emt 0:00:55]} 6. O-O {[%emt 0:02:18]} Nbc6 {[%emt 0:03:20]} 7. d3 {[%emt 0:02:49]} O-O {[%emt 0:01:36]} 8. Kh1 {[%emt 0:03:54]} h6 {[%emt 0:04:12]} 9. e4 {[%emt 0:04:04]} Be6 {[%emt 0:03:38]} 10. Be3 {[%emt 0:09:15]} exf4 {[%emt 0:10:37]} 11. Bxf4 {[%emt 0:03:48]} d5 {[%emt 0:02:55]} 12. Qe2 {[%emt 0:17:18]} d4 {[%emt 0:09:03]} 13. Nb5 {[%emt 0:10:02]} Rc8 {[%emt 0:05:42]} 14. a4 {[%emt 0:00:27]} a6 {[%emt 0:04:13]} 15. Na3 {[%emt 0:00:20]} g5 {[%emt 0:00:08]} 16. Bd2 {[%emt 0:14:04]} Ng6 {[%emt 0:00:21]} 17. Nc4 {[%emt 0:00:40]} g4 {[%emt 0:01:19]} 18. Ng1 {[%emt 0:01:21]} b5 {[%emt 0:08:16]} 19. axb5 {[%emt 0:01:15]} axb5 {[%emt 0:00:12]} 20. Na5 {[%emt 0:00:08]} Nce5 {[%emt 0:00:24]} 21. Nb7 {[%emt 0:27:13]} Qe7 {[%emt 0:00:17]} 22. b4 {[%emt 0:00:00]} Rce8 {[%emt 0:04:35]} 23. Nc5 {[%emt 0:01:00]} Bc8 {[%emt 0:00:29]} 24. Qf2 {[%emt 0:00:00]} h5 {[%emt 0:02:49]} 25. Ne2 {[%emt 0:00:00]} h4 {[%emt 0:04:19]} 26. gxh4 {[%emt 0:00:00]} Nxh4 {[%emt 0:04:25]} 27. Nxd4 {[%emt 0:00:00]} Nxg2 {[%emt 0:06:33]} 28. Qxg2 {[%emt 0:00:00]} Ng6 {[%emt 0:02:56]} 29. c3 {[%emt 0:00:00]} Nh4 {[%emt 0:02:30]} 30. Qg3 {[%emt 0:00:00]} f5 {[%emt 0:03:30]} 31. exf5 {[%emt 0:00:00]} Nxf5 {[%emt 0:02:52]} 32. Nxf5 {[%emt 0:00:00]} Bxf5 {[%emt 0:00:09]} 33. Qg2 {[%emt 0:00:26]} Qd6 {[%emt 0:01:24]} 34. d4 {[%emt 0:01:59]} Qg6 {[%emt 0:04:14]} 35. Rae1 {[%emt 0:00:27]} Kh7 {[%emt 0:00:25]} 36. Kg1 {[%emt 0:00:41]} Bf6 {[%emt 0:02:06]} 37. Rxe8 {[%emt 0:01:15]} Rxe8 38. Qd5 {[%emt 0:00:17]} Bc8 {[%emt 0:02:26]} 39. Rxf6 {[%emt 0:00:15]} Qxf6 {[%emt 0:01:07]} 40. Qh5+ {[%emt 0:00:00]} Kg7 {[%emt 0:00:00]} 41. Qxe8 {[%emt 0:00:36]} 1-0

[Event "BLR-ch Youth U20 2019"]
[Site "Kobryn"]
[Date "2019.05.19"]
[Round "9.2"]
[White "Runets, Ivan"]
[Black "Papunidi, Matvey"]
[Result "1/2-1/2"]
[ECO "E33"]
[WhiteElo "2123"]
[BlackElo "2148"]
[Annotator "NA RC"]
[PlyCount "74"]
[EventDate "2019.05.11"]
[EventType "tourn"]
[EventCountry "BLR"]
[SourceTitle "playchess.com"]
[Source "ChessBase"]
[SourceQuality "1"]
[TimeControl "40/5400+30:1800+30"]

1. d4 {[%emt 0:01:04]} Nf6 {[%emt 0:00:00]} 2. Nf3 {[%emt 0:00:07]} e6 {[%emt 0:02:44]} 3. c4 {[%emt 0:00:13]} Nc6 {[%emt 0:00:17]} 4. Nc3 {[%emt 0:01:28]} Bb4 {[%emt 0:00:07]} 5. Qc2 {[%emt 0:00:30]} O-O {[%emt 0:01:41]} 6. Bd2 {[%emt 0:00:55]} d6 {[%emt 0:00:58]} 7. a3 {[%emt 0:00:24]} Bxc3 {[%emt 0:00:06]} 8. Bxc3 {[%emt 0:00:03]} Qe7 {[%emt 0:00:20]} 9. e3 {[%emt 0:00:26]} e5 {[%emt 0:00:36]} 10. d5 {[%emt 0:00:02] E33: Nimzo-Indian: Classical: 4...Nc6} Nb8 {[%emt 0:01:03]} 11. Nd2 {[%emt 0:00:05]} a5 {[%emt 0:04:01]} 12. b4 {[%emt 0:07:47]} (12. b3 c6 13. dxc6 Nxc6 14. Bd3 Be6 15. O-O d5 16. cxd5 Bxd5 17. Rfd1 Rac8 {½-½ (17) Wagner,D (2580)-Nisipeanu,L (2670) Skopje 2019}) 12... axb4 {[%emt 0:00:41]} 13. axb4 {[%emt 0:00:09]} Rxa1+ {[%emt 0:00:07]} 14. Bxa1 {[%emt 0:00:05]} Ne8 $146 {[%emt 0:32:33]} ({Predecessor:} 14... b5 $11 15. e4 bxc4 16. Bxc4 Nh5 17. O-O Nf4 {½-½ (56) Nowak,K (1823)-Walter,S (2078) Wroclaw 2017}) 15. Bd3 {[%emt 0:06:50]} f5 {[%emt 0:00:53]} 16. O-O {[%emt 0:00:13]} Nf6 {[%emt 0:04:33]} 17. Bb2 {[%emt 0:11:02]} c6 {[%emt 0:11:09]} 18. dxc6 {[%emt 0:03:05]} Nxc6 {[%emt 0:00:02]} 19. Qc3 {[%emt 0:03:22]} Be6 {[%emt 0:03:00]} 20. b5 {[%emt 0:00:12]} Nb8 {[%emt 0:00:06]} 21. Ra1 {[%emt 0:02:28]} Nbd7 {[%emt 0:03:21]} 22. Nb3 {[%emt 0:00:54]} Ne4 {[%emt 0:00:29]} 23. Qc2 {[%emt 0:00:34]} Ndc5 {[%emt 0:02:18]} 24. Nxc5 {[%emt 0:00:29]} Nxc5 {[%emt 0:00:03]} 25. Bf1 {[%emt 0:00:09]} Rc8 {[%emt 0:04:54]} 26. Qc3 {[%emt 0:04:21]} Qf7 {[%emt 0:08:22]} 27. Qb4 {[%emt 0:01:03]} h6 {[%emt 0:00:51]} 28. Rd1 {[%emt 0:00:20]} Qc7 {[%emt 0:01:07]} 29. f3 {[%emt 0:04:10]} b6 {[%emt 0:00:51]} 30. Qd2 {[%emt 0:00:54]} Nb7 {[%emt 0:03:49]} 31. Ba3 $11 {[%emt 0:01:39]} Rd8 {[%emt 0:00:04]} 32. Qd3 {[%emt 0:02:53]} d5 {[%emt 0:01:03]} 33. cxd5 {[%emt 0:04:31]} Rxd5 {[%emt 0:00:02]} 34. Rc1 {[%emt 0:01:09]} Qxc1 {[%emt 0:03:54]} 35. Bxc1 {[%emt 0:00:05]} Rxd3 {[%emt 0:00:02]} 36. Bxd3 {[%emt 0:00:08]} Nd6 {[%emt 0:02:22]} 37. Ba3 {[%emt 0:00:56]} Nc4 {[%emt 0:00:14]} 1/2-1/2

[Event "BLR-ch Youth U20 2019"]
[Site "Kobryn"]
[Date "2019.05.19"]
[Round "9.4"]
[White "Siniauski, Artsiom"]
[Black "Galkin, Gleb"]
[Result "0-1"]
[ECO "C95"]
[WhiteElo "2219"]
[BlackElo "2163"]
[Annotator "NA RC"]
[PlyCount "112"]
[EventDate "2019.05.11"]
[EventType "tourn"]
[EventCountry "BLR"]
[SourceTitle "playchess.com"]
[Source "ChessBase"]
[SourceQuality "1"]
[TimeControl "40/5400+30:1800+30"]

1. e4 {[%emt 0:00:00]} e5 {[%emt 0:00:00]} 2. Nf3 {[%emt 0:00:00]} Nc6 {[%emt 0:00:00]} 3. Bb5 {[%emt 0:00:00]} a6 {[%emt 0:00:00]} 4. Ba4 {[%emt 0:00:05]} Nf6 {[%emt 0:00:00]} 5. O-O {[%emt 0:00:11]} Be7 {[%emt 0:00:00]} 6. Re1 {[%emt 0:00:08]} b5 {[%emt 0:00:00]} 7. Bb3 {[%emt 0:00:05]} O-O {[%emt 0:00:05]} 8. h3 {[%emt 0:00:09]} d6 {[%emt 0:00:05]} 9. c3 {[%emt 0:00:09]} Nb8 {[%emt 0:00:04]} 10. d4 {[%emt 0:04:17]} Nbd7 {[%emt 0:00:16]} 11. Nbd2 {[%emt 0:00:14]} Bb7 {[%emt 0:00:06]} 12. Bc2 {[%emt 0:00:44]} Re8 {[%emt 0:00:07]} 13. a4 {[%emt 0:01:51]} Bf8 {[%emt 0:09:38]} 14. Bd3 {[%emt 0:02:13]} c6 {[%emt 0:02:04]} 15. Qc2 {[%emt 0:05:23] C95: Closed Ruy Lopez: Breyer Variation with 10 d4} (15. b3 g6 16. Qc2 Nh5 17. Bf1 Nf4 18. g3 Ne6 19. Bb2 Bg7 20. b4 Nb6 21. axb5 axb5 22. dxe5 Rxa1 23. Rxa1 dxe5 24. c4 Nd4 25. Bxd4 exd4 {½-½ (73) Inarkiev,E (2684)-Alekseenko,K (2621) Yaroslavl 2018}) 15... Rc8 {[%emt 0:08:23]} 16. b3 {[%emt 0:06:00]} g6 {[%emt 0:15:50]} 17. Bb2 {[%emt 0:04:12]} Bg7 {[%emt 0:01:09]} 18. Rac1 {[%emt 0:07:58]} Qc7 {[%emt 0:08:34]} 19. axb5 $146 {[%emt 0:09:24]} ({Predecessor:} 19. b4 Nb6 20. axb5 cxb5 21. d5 Bh6 22. Qd1 Nh5 23. g3 {1-0 (38) Ladopoulos,D (2197)-Tsekmes,D (1886) Thessaloniki 2015}) 19... cxb5 {[%emt 0:04:22]} 20. d5 {[%emt 0:01:45]} Nc5 {[%emt 0:10:19]} 21. b4 {[%emt 0:03:39]} Nxd3 {[%emt 0:01:26]} 22. Qxd3 {[%emt 0:00:07]} Nd7 {[%emt 0:06:04]} 23. c4 {[%emt 0:03:04]} Qb6 {[%emt 0:02:15]} 24. cxb5 {[%emt 0:06:16]} Qxb5 {[%emt 0:05:41]} 25. Qxb5 {[%emt 0:10:29]} axb5 {[%emt 0:00:01]} 26. Nb3 {[%emt 0:00:09]} Nb6 {[%emt 0:07:00]} 27. Na5 {[%emt 0:07:22]} Ba8 {[%emt 0:00:08]} 28. Nd2 {[%emt 0:01:44]} f5 {[%emt 0:01:40]} 29. f3 {[%emt 0:01:50]} Bh6 {[%emt 0:00:38]} 30. Rxc8 {[%emt 0:01:17]} Rxc8 {[%emt 0:00:55]} 31. Ndb3 {[%emt 0:00:10]} Na4 {[%emt 0:04:34]} 32. Re2 {[%emt 0:03:19]} Nxb2 {[%emt 0:06:38]} 33. Rxb2 {[%emt 0:00:05]} fxe4 {[%emt 0:01:38]} 34. fxe4 {[%emt 0:00:05]} Be3+ {[%emt 0:00:05]} 35. Kf1 {[%emt 0:01:34]} Bb6 {[%emt 0:02:35]} 36. Ke2 {[%emt 0:01:34]} Kf7 {[%emt 0:03:29]} 37. Kd3 {[%emt 0:00:46]} Ke7 {[%emt 0:00:58]} 38. Nd2 {[%emt 0:04:22]} Kd7 {[%emt 0:01:34]} 39. Nb1 {[%emt 0:02:40]} Bxa5 {[%emt 0:00:38]} 40. bxa5 {[%emt 0:00:00]} Bb7 {[%emt 0:00:00]} 41. Na3 {[%emt 0:04:27]} Ra8 {[%emt 0:05:55]} 42. Nxb5 {[%emt 0:04:22]} Rxa5 {[%emt 0:06:15]} 43. Nxd6 {[%emt 0:03:38]} Ba6+ {[%emt 0:00:26]} 44. Nc4 {[%emt 0:00:04]} Ra3+ {[%emt 0:00:16]} 45. Kd2 {[%emt 0:00:13]} Bxc4 {[%emt 0:00:48]} 46. Rb7+ {[%emt 0:00:04]} Kd6 {[%emt 0:01:24]} 47. Rxh7 {[%emt 0:00:03]} Kc5 {[%emt 0:03:16]} 48. Rc7+ {[%emt 0:00:59]} Kd4 {[%emt 0:00:29]} 49. d6 {[%emt 0:00:03]} Ra6 {[%emt 0:06:51]} 50. d7 {[%emt 0:00:27]} Rd6 {[%emt 0:00:53]} 51. Rc6 {[%emt 0:00:19]} Rxd7 {[%emt 0:00:07]} 52. Rxg6 {[%emt 0:00:05]} Kxe4+ {[%emt 0:00:11]} 53. Ke1 {[%emt 0:00:05]} Kd3 {[%emt 0:02:02]} 54. h4 {[%emt 0:00:29]} e4 {[%emt 0:01:36]} 55. h5 {[%emt 0:00:18]} e3 {[%emt 0:00:18]} 56. h6 {[%emt 0:00:41]} Kc2 {[%emt 0:00:07]} 0-1